bitfinex/quotes_SOLUSD_20220210
["timestamp","ask_amount","ask_price","bid_price","bid_amount"]
[1644474614675,59.58799036,111.4,111.38,13.4693]
[1644474615077,59.58799036,111.4,111.39,35.62391621]
[1644474615277,59.58799036,111.4,111.38,13.4693]
[1644474616477,3.03219997,111.39,111.38,55.59301703]
[1644474616685,3.03219997,111.39,111.38,13.4693]
[1644474617983,3.03219997,111.39,111.38,61.52485356]
[1644474618180,3.03219997,111.39,111.38,13.4693]
[1644474618581,6.06439994,111.39,111.38,13.4693]
[1644474619787,35.85839512,111.39,111.38,13.4693]
[1644474620181,65.6523903,111.39,111.38,13.4693]
[1644474621981,59.58799036,111.39,111.38,13.4693]
[1644474623284,1.27165049,111.45,111.39,44.0556396]
[1644474623487,1.27165049,111.45,111.4,13.4649]
[1644474623784,24.48695049,111.46,111.41,36.63412015]
[1644474624285,24.48695049,111.46,111.41,34.38884645]
[1644474624686,37.95235049,111.46,111.41,47.85374645]
[1644474629686,14.73705049,111.46,111.41,47.85374645]
[1644474630089,14.73705049,111.46,111.41,13.4649]
[1644474631111,14.73705049,111.46,111.42,46.47612539]
[1644474633713,14.73705049,111.46,111.41,13.4649]
[1644474633911,14.73705049,111.46,111.4,13.467]
[1644474634114,13.4675,111.44,111.4,13.467]
[1644474634513,13.4675,111.44,111.39,23.9746]
[1644474634813,14.73915049,111.44,111.39,67.9624418]
[1644474635814,14.73915049,111.44,111.39,81.4300418]
[1644474643124,1.27165049,111.43,111.39,81.4300418]
[1644474643424,14.74035049,111.43,111.39,81.4300418]
[1644474650030,13.4687,111.43,111.39,81.4300418]
[1644474650632,14.74035049,111.43,111.39,81.4300418]
[1644474653232,14.73945049,111.44,111.39,81.4300418]
[1644474654933,1.27165049,111.43,111.39,81.4300418]
[1644474655231,14.73945049,111.44,111.39,81.4300418]
[1644474656431,14.73945049,111.44,111.39,43.9878418]
[1644474656633,1.27165049,111.42,111.39,43.9878418]
[1644474656831,14.74175049,111.42,111.4,3.03219997]
[1644474657031,3.03219997,111.41,111.38,24.9176]
[1644474657233,3.03219997,111.41,111.37,22.6347]
[1644474657435,3.03219997,111.41,111.37,36.1051]
[1644474657833,3.03219997,111.41,111.38,40.35949703]
[1644474658235,16.50329997,111.41,111.37,13.4704]
[1644474658437,16.50329997,111.41,111.36,0.024]
[1644474658438,17.77495046,111.41,111.36,0.024]
[1644474658635,1.27165049,111.39,111.34,0.024]
[1644474658837,1.27165049,111.39,111.35,0.024]
[1644474659036,1.27165049,111.39,111.32,24.1787]
[1644474659037,1.27165049,111.39,111.32,24.2027]
[1644474659235,13.4756,111.38,111.33,37.64124274]
[1644474659437,13.4756,111.38,111.33,37.66524274]
[1644474660837,13.4742,111.39,111.33,37.66524274]
[1644474663641,26.02985049,111.4,111.33,37.66524274]
[1644474663842,1.27165049,111.4,111.34,12.484]
[1644474664142,23.88855049,111.42,111.34,37.0725]
[1644474664340,23.88855049,111.42,111.35,0.024]
[1644474664941,23.88855049,111.42,111.35,41.63090615]
[1644474665841,37.35935049,111.42,111.35,55.10140615]
[1644474666242,2.54753093,111.45,111.36,53.46]
[1644474666442,7.0,111.46,111.37,113.8124]
[1644474666642,7.0,111.46,111.39,155.81]
[1644474666842,7.0,111.46,111.41,13.4614]
[1644474667043,7.0,111.46,111.42,12.46]
[1644474667244,7.0,111.46,111.43,43.071538]
[1644474667446,7.0,111.46,111.44,3.03219997]
[1644474667945,0.024,111.48,111.44,30.72124767]
[1644474668145,0.024,111.49,111.44,30.97124767]
[1644474668344,0.024,111.5,111.44,30.97124767]
[1644474668544,0.024,111.51,111.44,30.97124767]
[1644474668744,2.54753093,111.54,111.45,40.46879688]
[1644474668745,0.024,111.5,111.45,40.46879688]
[1644474668947,0.024,111.51,111.45,66.38779688]
[1644474669245,0.024,111.51,111.45,68.40514458]
[1644474669449,0.024,111.51,111.45,68.15514458]
[1644474669745,0.024,111.51,111.45,66.38779688]
[1644474670248,0.024,111.51,111.45,66.63779688]
[1644474670755,0.024,111.51,111.45,66.38779688]
[1644474673475,13.02616757,111.51,111.45,66.38779688]
[1644474673675,0.024,111.51,111.45,66.38779688]
[1644474675379,13.4597,111.53,111.45,66.38779688]
[1644474675577,0.024,111.51,111.45,66.38779688]
[1644474679285,13.4863,111.51,111.45,12.46]
[1644474679487,13.4863,111.51,111.42,12.46]
[1644474679688,0.024,111.5,111.38,12.46]
[1644474679889,2.2752023,111.5,111.38,12.46]
[1644474680289,17.70298922,111.49,111.39,46.58494064]
[1644474680496,0.024,111.48,111.39,46.58494064]
[1644474680692,0.024,111.48,111.39,60.05124064]
[1644474680892,2.2752023,111.48,111.37,0.024]
[1644474681092,0.024,111.47,111.37,0.024]
[1644474681995,37.81476068,111.47,111.37,37.0354818]
[1644474682797,13.4698,111.45,111.37,50.5052818]
[1644474683398,31.17278922,111.45,111.37,50.5052818]
[1644474684098,13.4698,111.45,111.37,50.5052818]
[1644474684999,13.4916,111.47,111.38,14.22832697]
[1644474685200,0.024,111.48,111.4,13.4655]
[1644474685398,0.024,111.46,111.41,12.46]
[1644474685602,0.024,111.47,111.41,14.22832697]
[1644474685797,0.024,111.49,111.41,14.22832697]
[1644474685998,13.4654,111.48,111.4,23.7216]
[1644474686199,0.024,111.47,111.4,23.7216]
[1644474686397,0.024,111.47,111.41,42.88969349]
[1644474686799,0.024,111.47,111.41,44.65802046]
[1644474687000,0.024,111.49,111.41,57.36802046]
[1644474687200,0.024,111.47,111.41,57.36802046]
[1644474687401,0.024,111.48,111.41,57.36802046]
[1644474687601,0.024,111.5,111.41,80.95132046]
[1644474687800,0.024,111.47,111.41,80.95132046]
[1644474688000,0.024,111.5,111.41,80.95132046]
[1644474688701,0.024,111.5,111.41,94.41632046]
[1644474690202,0.024,111.52,111.42,6.0]
[1644474690404,0.024,111.49,111.44,13.4602]
[1644474690706,0.024,111.51,111.44,60.35487739]
[1644474696810,0.024,111.51,111.44,72.81487739]
[1644474700810,0.024,111.51,111.44,74.58320436]
[1644474701211,13.4853,111.51,111.44,72.81487739]
[1644474701413,13.4853,111.51,111.44,60.35487739]
[1644474702713,13.35155606,111.51,111.44,60.35487739]
[1644474704519,13.4599,111.52,111.44,60.35487739]
[1644474704717,2.54753093,111.53,111.45,1.76832697]
[1644474704915,25.75533093,111.54,111.46,13.459]
[1644474705118,1.338362,111.5,111.46,13.459]
[1644474705742,1.338362,111.5,111.47,46.55269789]
[1644474706051,1.338362,111.5,111.48,3.03219997]
[1644474707041,1.338362,111.5,111.49,48.45490746]
[1644474708244,1.338362,111.5,111.49,61.91090746]
[1644474709240,1.338362,111.5,111.49,48.45490746]
[1644474710542,1.338362,111.5,111.48,16.48929997]
[1644474710756,1.338362,111.5,111.48,3.03219997]
[1644474711348,1.338362,111.5,111.45,36.4339]
[1644474711544,1.338362,111.5,111.46,43.1160987]
[1644474712345,1.338362,111.5,111.43,12.46]
[1644474712545,1.338362,111.5,111.42,35.7323]
[1644474713447,1.338362,111.5,111.43,38.58779764]
[1644474713647,16.54538823,111.49,111.43,52.05099764]
[1644474713851,16.54538823,111.49,111.43,38.58779764]
[1644474714649,13.4639,111.49,111.43,38.58779764]
[1644474716753,13.4639,111.49,111.43,52.05109764]
[1644474718555,3.88589293,111.5,111.43,52.05109764]
[1644474718756,0.024,111.49,111.43,54.06942461]
[1644474718959,1.338362,111.5,111.43,53.81942461]
[1644474719255,0.024,111.49,111.43,54.06942461]
[1644474719456,1.362362,111.5,111.43,54.06942461]
[1644474719655,1.338362,111.5,111.43,54.06942461]
[1644474719855,1.362362,111.5,111.43,54.06942461]
[1644474721359,1.362362,111.5,111.43,52.30109764]
[1644474722961,1.362362,111.5,111.43,54.06942461]
[1644474726164,1.362362,111.5,111.43,52.30109764]
[1644474727464,1.362362,111.5,111.43,52.05109764]
[1644474728767,1.362362,111.5,111.43,53.81942461]
[1644474729371,1.362362,111.5,111.43,66.27942461]
[1644474730778,1.362362,111.5,111.43,64.51109764]
[1644474731874,1.362362,111.5,111.43,66.27942461]
[1644474732094,1.362362,111.5,111.43,66.52942461]
[1644474733296,1.338362,111.5,111.43,66.52942461]
[1644474738500,1.362362,111.5,111.43,66.52942461]
[1644474738701,1.362362,111.5,111.43,64.51109764]
[1644474740001,1.362362,111.5,111.43,52.05109764]
[1644474740801,14.823862,111.5,111.43,52.05109764]
[1644474745104,17.37139293,111.5,111.43,52.05109764]
[1644474745305,34.90708016,111.5,111.43,52.05109764]
[1644474746205,17.34739293,111.5,111.43,52.05109764]
[1644474747407,17.34739293,111.5,111.43,13.4633]
[1644474747408,13.16756328,111.49,111.43,13.4633]
[1644474747626,13.4652,111.48,111.42,13.4652]
[1644474747810,13.4652,111.48,111.4,24.5117]
[1644474748308,16.01273093,111.48,111.4,24.5117]
[1644474748610,16.01273093,111.48,111.41,40.72733526]
[1644474750309,42.32618662,111.47,111.41,40.72733526]
[1644474750710,13.4669,111.46,111.41,40.72733526]
[1644474753817,13.4669,111.46,111.41,54.19353526]
[1644474754018,13.4643,111.47,111.41,54.19353526]
[1644474762729,25.88715454,111.47,111.41,54.19353526]
[1644474762929,25.88715454,111.47,111.41,40.72733526]
[1644474764031,13.4643,111.47,111.41,40.72733526]
[1644474764632,13.4643,111.47,111.41,54.19333526]
[1644474765952,13.4643,111.47,111.41,40.72733526]
[1644474769355,14.72876361,111.46,111.4,37.9786]
[1644474769555,13.4671,111.45,111.4,37.9786]
[1644474769756,13.4671,111.45,111.4,13.4909]
[1644474769956,13.4671,111.45,111.4,0.024]
[1644474770155,15.7183023,111.45,111.39,23.2238]
[1644474770359,40.76498629,111.44,111.37,46.31085039]
[1644474770556,13.4719,111.43,111.38,0.024]
[1644474786271,14.74543937,111.43,111.38,0.024]
[1644474788974,32.75450205,111.43,111.38,0.024]
[1644474790577,1.27353937,111.42,111.38,0.024]
[1644474790779,13.4717,111.41,111.36,37.3736]
[1644474791378,13.4717,111.41,111.36,73.22054801]
[1644474792078,1.27353937,111.42,111.36,73.22054801]
[1644474792079,14.74353937,111.42,111.36,73.22054801]
[1644474792379,1.27353937,111.44,111.36,75.23887498]
[1644474792579,1.27353937,111.44,111.37,12.484]
[1644474792784,1.27353937,111.44,111.39,13.4674]
[1644474793178,1.27353937,111.44,111.39,52.25764584]
[1644474793581,12.45186094,111.44,111.39,52.25764584]
[1644474793782,25.91956094,111.44,111.39,13.4674]
[1644474794983,1.27353937,111.43,111.39,13.4674]
[1644474797383,14.74223937,111.43,111.39,13.4674]
[1644474799384,32.28460508,111.43,111.39,13.4674]
[1644474799586,1.27353937,111.42,111.39,13.4674]
[1644474799985,3.03219997,111.41,111.38,37.7228]
[1644474800185,3.03219997,111.41,111.38,13.4694]
[1644474801387,3.03219997,111.41,111.39,3.03219997]
[1644474802086,14.74353937,111.42,111.39,3.03219997]
[1644474802788,3.03219997,111.41,111.39,3.03219997]
[1644474802986,3.03219997,111.41,111.38,13.4694]
[1644474803988,3.03219997,111.41,111.39,3.03219997]
[1644474804290,3.03219997,111.41,111.39,39.10967838]
[1644474804508,14.74353937,111.42,111.39,39.10967838]
[1644474804691,1.27353937,111.42,111.39,39.10967838]
[1644474806593,1.27353937,111.42,111.39,3.03219997]
[1644474806796,14.74393937,111.42,111.39,3.03219997]
[1644474808918,1.27353937,111.42,111.39,3.03219997]
[1644474816324,1.27353937,111.42,111.4,42.12677436]
[1644474816523,14.74253937,111.43,111.4,42.12677436]
[1644474817124,1.27353937,111.43,111.4,42.12677436]
[1644474817925,1.27353937,111.43,111.42,36.13056322]
[1644474818122,13.4678,111.44,111.42,36.13056322]
[1644474818123,1.27353937,111.44,111.42,36.13056322]
[1644474818825,3.03219997,111.43,111.39,0.024]
[1644474819023,1.27353937,111.43,111.38,23.5382]
[1644474819826,14.74213937,111.43,111.38,77.44337317]
[1644474820028,32.94064208,111.43,111.38,77.44337317]
[1644474820625,14.74213937,111.43,111.38,77.44337317]
[1644474821025,14.74213937,111.43,111.38,37.0079]
[1644474821228,14.74363937,111.42,111.38,37.0079]
[1644474822025,14.74363937,111.42,111.38,0.024]
[1644474822226,14.74363937,111.42,111.37,44.39155989]
[1644474822427,1.27353937,111.41,111.37,44.41555989]
[1644474822630,14.74363937,111.42,111.37,44.39155989]
[1644474822827,14.74363937,111.42,111.37,44.41555989]
[1644474823427,1.27353937,111.41,111.37,44.41555989]
[1644474823628,14.74533937,111.41,111.37,57.86305989]
[1644474824529,14.74533937,111.41,111.37,44.39155989]
[1644474825629,13.4718,111.41,111.37,44.39155989]
[1644474826430,14.74533937,111.41,111.37,44.39155989]
[1644474827030,14.74533937,111.41,111.37,57.86315989]
[1644474828536,13.4718,111.41,111.37,57.86315989]
[1644474828733,14.74533937,111.41,111.37,57.86315989]
[1644474829332,13.4718,111.41,111.37,57.86315989]
[1644474829532,13.4718,111.41,111.37,44.39155989]
[1644474830836,14.74533937,111.41,111.37,44.39155989]
[1644474831235,13.4718,111.41,111.37,44.39155989]
[1644474831837,13.4718,111.41,111.37,57.86315989]
[1644474835639,14.74393937,111.42,111.37,57.86315989]
[1644474835837,14.74393937,111.42,111.37,57.88715989]
[1644474841867,1.27353937,111.42,111.37,57.88715989]
[1644474842066,1.27353937,111.42,111.37,72.10852701]
[1644474842264,1.27353937,111.43,111.37,72.10852701]
[1644474842464,1.27353937,111.43,111.37,95.03242701]
[1644474843065,1.27353937,111.44,111.37,95.28242701]
[1644474843265,1.27353937,111.45,111.37,95.28242701]
[1644474843666,1.27353937,111.45,111.38,6.0]
[1644474843866,1.27353937,111.45,111.38,18.46]
[1644474844067,1.27353937,111.45,111.41,44.21289538]
[1644474845768,1.27353937,111.45,111.42,13.4654]
[1644474846167,3.03219997,111.44,111.42,13.4654]
[1644474850875,3.03219997,111.44,111.4,0.024]
[1644474851074,3.03219997,111.44,111.39,23.5541]
[1644474851275,4.30573934,111.44,111.39,23.5541]
[1644474851474,1.27353937,111.43,111.39,23.5541]
[1644474852288,14.74333937,111.43,111.39,37.0229]
[1644474854189,13.4698,111.43,111.39,37.0229]
[1644474854388,14.74163937,111.44,111.39,37.0229]
[1644474854792,25.8508023,111.49,111.39,37.0229]
[1644474854990,2.54804619,111.5,111.4,12.46]
[1644474855190,2.54804619,111.5,111.43,13.4607]
[1644474855390,2.54804619,111.53,111.44,50.09904328]
[1644474855593,5.09699099,111.53,111.44,56.09904328]
[1644474855793,2.54804619,111.54,111.44,56.34904328]
[1644474855991,2.54804619,111.55,111.45,25.57476712]
[1644474856191,2.54804619,111.55,111.46,19.4579]
[1644474856390,5.09344218,111.56,111.47,12.46]
[1644474856590,16.00404619,111.56,111.48,46.80547851]
[1644474856994,13.456,111.56,111.47,24.6947]
[1644474857194,16.00404619,111.56,111.45,12.46]
[1644474857395,5.08993666,111.55,111.45,12.46]
[1644474857591,2.54804619,111.54,111.43,37.1547]
[1644474857791,16.00744619,111.54,111.43,37.1547]
[1644474857991,2.54804619,111.55,111.44,85.2163217]
[1644474858191,2.54804619,111.56,111.45,35.1937]
[1644474858592,2.54804619,111.56,111.45,35.4437]
[1644474859793,13.4569,111.55,111.45,48.9042]
[1644474859996,26.88134619,111.57,111.45,50.68816745]
[1644474861693,13.4557,111.56,111.45,50.68816745]
[1644474864194,13.4557,111.56,111.49,13.4554]
[1644474864395,13.4557,111.56,111.5,42.32562126]
[1644474868904,37.7877,111.57,111.5,55.78002126]
[1644474870703,37.8117,111.57,111.5,55.78002126]
[1644474875024,37.8117,111.57,111.5,42.32562126]
[1644474875224,37.8117,111.57,111.49,23.6685]
[1644474875424,50.2717,111.57,111.47,24.4591]
[1644474875726,52.81974619,111.57,111.47,24.4591]
[1644474875926,50.2717,111.57,111.47,24.4591]
[1644474876124,52.81974619,111.57,111.47,24.4591]
[1644474876323,52.81974619,111.57,111.48,60.76771322]
[1644474876523,52.81974619,111.57,111.48,74.22481322]
[1644474877223,50.2717,111.57,111.48,74.22481322]
[1644474877425,52.81974619,111.57,111.48,74.22481322]
[1644474877823,50.2717,111.57,111.48,74.22481322]
[1644474879025,52.81974619,111.57,111.48,74.22481322]
[1644474879925,37.8117,111.57,111.48,74.22481322]
[1644474880528,52.81974619,111.57,111.48,60.76771322]
[1644474882233,52.81974619,111.57,111.48,24.2461]
[1644474882433,52.81974619,111.57,111.39,328.3108]
[1644474882635,5.09107895,111.56,111.43,12.46]
[1644474882835,13.4614,111.53,111.44,24.4291]
[1644474883036,0.024,111.52,111.44,24.4291]
[1644474883237,8.05264081,111.52,111.44,67.99944588]
[1644474884240,13.4617,111.5,111.45,13.4611]
[1644474885238,2.57204619,111.52,111.45,13.4611]
[1644474885437,0.024,111.52,111.45,13.4611]
[1644474886145,13.4605,111.51,111.46,23.6977]
[1644474886543,13.4605,111.51,111.46,37.1579]
[1644474886941,0.024,111.52,111.46,37.1579]
[1644474887141,26.19574619,111.53,111.46,37.1579]
[1644474887641,26.21974619,111.53,111.46,37.1579]
[1644474887842,13.4594,111.52,111.46,37.1579]
[1644474888045,0.024,111.52,111.46,38.94186745]
[1644474888246,23.6477,111.53,111.46,51.40186745]
[1644474888445,0.024,111.52,111.46,51.40186745]
[1644474888647,0.024,111.54,111.46,51.40186745]
[1644474889243,0.024,111.54,111.46,51.65186745]
[1644474889444,0.024,111.54,111.47,6.0]
[1644474889642,0.024,111.54,111.49,13.4523]
[1644474889843,2.54804619,111.58,111.49,25.9123]
[1644474890046,0.024,111.55,111.5,38.29438571]
[1644474890244,0.024,111.57,111.5,83.13198571]
[1644474890447,2.57204619,111.57,111.5,38.29438571]
[1644474890646,2.54804619,111.56,111.5,38.29438571]
[1644474891043,2.54804619,111.56,111.51,13.4513]
[1644474891249,2.57204619,111.57,111.51,13.4513]
[1644474891444,2.54804619,111.57,111.51,13.4513]
[1644474892743,13.454,111.56,111.51,13.4513]
[1644474901374,16.00064619,111.57,111.51,13.4513]
[1644474901575,13.4526,111.57,111.51,13.4513]
[1644474903775,40.37164619,111.58,111.51,13.4513]
[1644474903976,40.34764619,111.58,111.51,13.4513]
[1644474904976,37.7996,111.58,111.51,13.4513]
[1644474905176,37.8236,111.58,111.51,13.4513]
[1644474905577,15.99824619,111.59,111.51,13.4513]
[1644474905776,2.54804619,111.59,111.52,12.46]
[1644474905979,2.54804619,111.6,111.54,13.4477]
[1644474906176,2.55102861,111.62,111.54,13.4477]
[1644474906177,5.0990748,111.62,111.54,13.4477]
[1644474906377,5.0990748,111.62,111.55,68.19858594]
[1644474906677,2.54804619,111.63,111.55,68.44858594]
[1644474907079,2.54804619,111.63,111.56,13.4464]
[1644474907080,13.4465,111.62,111.56,13.4464]
[1644474907478,13.4465,111.62,111.57,43.99130908]
[1644474910184,13.4465,111.62,111.56,13.4464]
[1644474910387,15.99454619,111.62,111.55,23.9151]
[1644474910987,13.4465,111.62,111.55,23.9151]
[1644474911185,15.99454619,111.62,111.55,61.0227041]
[1644474912288,13.4465,111.62,111.55,61.0227041]
[1644474913690,13.4465,111.62,111.55,74.4705041]
[1644474916790,15.99454619,111.62,111.55,74.4705041]
[1644474916989,13.4465,111.62,111.55,74.4705041]
[1644474917194,23.14252598,111.62,111.55,74.4705041]
[1644474917590,15.99454619,111.62,111.55,74.4705041]
[1644474918593,54.87003489,111.62,111.55,74.4705041]
[1644474919195,15.99454619,111.62,111.55,74.4705041]
[1644474919998,13.4465,111.62,111.55,74.4705041]
[1644474921597,13.4705,111.62,111.55,74.4705041]
[1644474922298,34.8016862,111.62,111.55,37.1076041]
[1644474922500,37.34973239,111.62,111.55,37.1076041]
[1644474922700,5.09695935,111.61,111.55,37.1076041]
[1644474922900,13.4496,111.6,111.55,37.1076041]
[1644474923099,2.54804619,111.61,111.55,37.1076041]
[1644474923299,0.024,111.6,111.55,37.1076041]
[1644474923501,0.024,111.61,111.55,50.5556041]
[1644474923700,5.12109017,111.62,111.55,50.5556041]
[1644474924101,13.4477,111.61,111.55,50.5556041]
[1644474924301,13.4717,111.61,111.55,50.5556041]
[1644474925402,13.4477,111.61,111.55,50.5556041]
[1644474925803,13.4717,111.61,111.55,50.5556041]
[1644474927025,13.4477,111.61,111.55,50.5556041]
[1644474927203,13.4717,111.61,111.55,50.5556041]
[1644474930509,16.01974619,111.61,111.55,37.1076041]
[1644474930709,18.24694849,111.61,111.55,37.1076041]
[1644474930911,15.99574619,111.61,111.55,37.1076041]
[1644474931708,16.01974619,111.61,111.55,37.1076041]
[1644474931910,18.55162648,111.6,111.55,37.1076041]
[1644474932111,15.99714619,111.6,111.55,37.1076041]
[1644474935342,2.55790733,111.59,111.55,37.1076041]
[1644474935939,15.99714619,111.6,111.55,50.5562041]
[1644474937243,15.99714619,111.6,111.55,37.1076041]
[1644474937443,5.10565851,111.59,111.55,37.1076041]
[1644474938545,18.55525851,111.59,111.55,37.1076041]
[1644474938945,15.99764619,111.59,111.55,37.1076041]
[1644474941349,13.4496,111.59,111.55,37.1076041]
[1644474941550,13.4496,111.59,111.54,23.2716]
[1644474941749,15.99764619,111.59,111.54,23.2716]
[1644474942551,15.99764619,111.59,111.54,70.82957039]
[1644474943255,53.75820379,111.59,111.54,47.55797039]
[1644474943453,5.10399068,111.58,111.51,22.9116]
[1644474943653,13.453,111.56,111.52,24.598]
[1644474944553,13.453,111.56,111.52,72.30453572]
[1644474947758,13.453,111.56,111.52,85.75713572]
[1644474947957,13.4522,111.57,111.52,85.75713572]
[1644474950357,13.4522,111.57,111.49,12.46]
[1644474950558,16.00024619,111.57,111.48,23.9274]
[1644474950758,18.25144849,111.57,111.48,23.9274]
[1644474951158,2.55116989,111.56,111.48,23.9274]
[1644474951361,18.25144849,111.57,111.49,36.91060871]
[1644474953369,16.00024619,111.57,111.49,36.91060871]
[1644474953562,13.4522,111.57,111.49,50.36600871]
[1644474955269,13.4522,111.57,111.5,22.7998]
[1644474955467,13.4522,111.57,111.51,13.453]
[1644474956271,13.4522,111.57,111.52,40.63797725]
[1644474957064,13.4522,111.57,111.5,36.254]
[1644474958069,13.4522,111.57,111.51,47.3825219]
[1644474958265,13.4522,111.57,111.51,60.8359219]
[1644474967994,0.024,111.58,111.51,73.5459219]
[1644474968198,0.024,111.58,111.52,24.2276]
[1644474968397,2.54804619,111.6,111.53,13.4475]
[1644474968598,0.024,111.59,111.53,13.4475]
[1644474968799,0.024,111.6,111.54,24.2276]
[1644474968996,38.60334619,111.61,111.54,59.06124004]
[1644474970397,36.0553,111.61,111.54,59.06124004]
[1644474970697,36.0553,111.61,111.56,13.4474]
[1644474970896,36.0313,111.61,111.56,13.4474]
[1644474971500,36.0313,111.61,111.57,39.58565962]
[1644474972097,13.4478,111.61,111.57,39.58565962]
[1644474974803,1.27318872,111.6,111.57,39.58565962]
[1644474975003,0.024,111.62,111.58,3.03219997]
[1644474975206,0.024,111.64,111.58,3.03219997]
[1644474975403,2.54804619,111.65,111.58,26.41309997]
[1644474975404,0.024,111.63,111.58,26.41309997]
[1644474975603,0.024,111.64,111.58,26.41309997]
[1644474975803,0.024,111.65,111.59,34.9752586]
[1644474976005,15.98994619,111.66,111.61,60.81121221]
[1644474976307,0.024,111.65,111.61,60.81121221]
[1644474976504,13.4419,111.66,111.61,60.81121221]
[1644474976704,13.4659,111.66,111.61,60.81121221]
[1644474978305,0.024,111.66,111.61,60.81121221]
[1644474978504,13.4653,111.67,111.61,60.81121221]
[1644474979903,13.4653,111.67,111.61,47.36951221]
[1644474980305,13.4443,111.65,111.57,12.46]
[1644474980505,37.1331,111.65,111.58,23.9771]
[1644474980703,0.024,111.64,111.58,23.9771]
[1644474980905,23.7128,111.65,111.58,23.9771]
[1644474981305,23.7128,111.65,111.59,43.29457155]
[1644474981707,13.4448,111.64,111.59,56.73887155]
[1644474984414,55.99932673,111.64,111.59,56.73887155]
[1644474984611,55.99932673,111.64,111.59,43.29457155]
[1644474985813,55.99932673,111.64,111.58,37.4229]
[1644474986016,56.02332673,111.64,111.58,23.9771]
[1644474987715,58.27452903,111.64,111.57,13.4468]
[1644474987917,0.024,111.63,111.55,22.5028]
[1644474988215,13.4509,111.61,111.53,22.5028]
[1644474988415,0.024,111.6,111.53,22.5028]
[1644474988618,2.2512023,111.6,111.53,22.5028]
[1644474988816,2.2512023,111.6,111.54,42.55204218]
[1644474989214,2.2512023,111.6,111.53,22.5028]
[1644474989215,56.00592673,111.59,111.53,35.9542]
[1644474990617,56.00592673,111.59,111.54,43.89500299]
[1644474991118,13.4514,111.59,111.54,43.89500299]
[1644474991318,13.4514,111.59,111.54,57.34570299]
[1644474991517,13.4497,111.6,111.54,57.34570299]
[1644474991717,0.024,111.61,111.55,22.7953]
[1644474991921,0.024,111.62,111.55,22.7953]
[1644474992123,0.024,111.62,111.56,41.63240557]
[1644474992721,13.4485,111.61,111.56,55.08060557]
[1644474993823,13.4709,111.62,111.56,55.08060557]
[1644474994024,0.024,111.62,111.56,55.08060557]
[1644474994223,0.024,111.62,111.57,23.0173]
[1644474994425,0.024,111.62,111.58,13.4454]
[1644474994645,24.8777,111.64,111.58,13.4454]
[1644474994843,24.8777,111.64,111.59,34.5207569]
[1644474995042,24.8537,111.64,111.59,34.5207569]
[1644474995242,113.98231296,111.65,111.59,34.5207569]
[1644474995540,71.72124619,111.65,111.59,34.5207569]
[1644474995741,13.4457,111.63,111.59,34.5207569]
[1644474997545,13.4684,111.64,111.59,47.9651569]
[1644474997744,2.57204619,111.65,111.59,47.9651569]
[1644474997945,0.024,111.65,111.59,47.9651569]
[1644474999244,0.024,111.65,111.59,71.5989569]
[1644475004756,0.024,111.67,111.59,71.8489569]
[1644475006757,13.465,111.67,111.59,71.8489569]
[1644475006957,0.024,111.66,111.59,71.8489569]
[1644475007858,0.024,111.66,111.59,71.5989569]
[1644475008057,13.4662,111.66,111.59,71.5989569]
[1644475009861,33.70482502,111.65,111.59,71.5989569]
[1644475010065,47.14842502,111.65,111.59,37.0782]
[1644475010361,47.17242502,111.65,111.59,37.0782]
[1644475011163,47.17242502,111.65,111.59,76.85335728]
[1644475012462,13.4676,111.65,111.59,76.85335728]
[1644475012863,0.024,111.67,111.59,76.85335728]
[1644475013062,0.024,111.67,111.59,89.56335728]
[1644475013263,2.57204619,111.69,111.59,89.56335728]
[1644475013462,0.024,111.66,111.59,89.56335728]
[1644475013663,0.024,111.68,111.59,89.56335728]
[1644475016766,0.024,111.68,111.61,89.63]
[1644475016966,0.024,111.7,111.63,13.4343]
[1644475017169,0.024,111.72,111.64,35.0299]
[1644475017368,0.024,111.69,111.64,35.0299]
[1644475017569,48.69053356,111.74,111.65,39.10194324]
[1644475017968,2.2512023,111.73,111.66,22.5699]
[1644475018168,20.32301634,111.72,111.67,40.60606193]
[1644475018374,20.29901634,111.72,111.66,36.0048]
[1644475018570,20.29901634,111.72,111.63,35.8953]